[Event "Titled Tuesday Blitz November 29 Early 2022"]
[White "Dubov, Daniil"]
[Black "Kamsky, Gata"]
[WhiteFideId "24126055"]
[BlackFideId "2000024"]
[WhiteElo "2791"]
[BlackElo "2666"]
[Result "1-0"]
[Round "04"]
[TimeControl "180+1"]
[Date "2022.11.30"]
[WhiteClock "0:00:24"]
[BlackClock "0:00:17"]

1. e4 {[%clk 0:03:00]}  c5 {[%clk 0:02:59]} 2. Nf3 {[%clk 0:03:00]}  e6 {[%clk 0:02:58]} 3. d4 {[%clk 0:03:01]}  cxd4 {[%clk 0:02:59]} 4. Nxd4 {[%clk 0:03:02]}  a6 {[%clk 0:02:59]} 5. c4 {[%clk 0:02:56]}  Nf6 {[%clk 0:02:56]} 6. Nc3 {[%clk 0:02:57]}  Qc7 {[%clk 0:02:54]} 7. Be2 {[%clk 0:02:54]}  b6 {[%clk 0:02:53]} 8. O-O {[%clk 0:02:53]}  Bb7 {[%clk 0:02:53]} 9. f3 {[%clk 0:02:53]}  Bd6 {[%clk 0:02:53]} 10. Kh1 {[%clk 0:02:48]}  Bc5 {[%clk 0:01:53]} 11. Be3 {[%clk 0:02:34]}  Nc6 {[%clk 0:01:53]} 12. Qd2 {[%clk 0:02:29]}  Nxd4 {[%clk 0:01:40]} 13. Bxd4 {[%clk 0:02:29]}  Qd6 {[%clk 0:01:40]} 14. Be3 {[%clk 0:01:57]}  Qxd2 {[%clk 0:01:38]} 15. Bxd2 {[%clk 0:01:58]}  Bc6 {[%clk 0:01:37]} 16. Rab1 {[%clk 0:01:48]}  a5 {[%clk 0:01:36]} 17. e5 {[%clk 0:01:34]}  Ng8 {[%clk 0:01:34]} 18. f4 {[%clk 0:01:34]}  Ne7 {[%clk 0:01:19]} 19. Bf3 {[%clk 0:01:35]}  Rc8 {[%clk 0:01:10]} 20. Bxc6 {[%clk 0:01:23]}  Rxc6 {[%clk 0:01:09]} 21. Ne4 {[%clk 0:01:12]}  h5 {[%clk 0:00:59]} 22. Nxc5 {[%clk 0:00:58]}  Rxc5 {[%clk 0:00:59]} 23. b3 {[%clk 0:00:59]}  Nf5 {[%clk 0:00:58]} 24. Rfd1 {[%clk 0:00:55]}  f6 {[%clk 0:00:52]} 25. Bc3 {[%clk 0:00:48]}  Ke7 {[%clk 0:00:51]} 26. Rd3 {[%clk 0:00:47]}  Rhc8 {[%clk 0:00:50]} 27. Rbd1 {[%clk 0:00:47]}  R8c7 {[%clk 0:00:41]} 28. Bb2 {[%clk 0:00:46]}  R5c6 {[%clk 0:00:40]} 29. Kg1 {[%clk 0:00:44]}  Ra7 {[%clk 0:00:39]} 30. a4 {[%clk 0:00:38]}  Rb7 {[%clk 0:00:27]} 31. Kf2 {[%clk 0:00:38]}  Rcc7 {[%clk 0:00:22]} 32. g3 {[%clk 0:00:36]}  Kf7 {[%clk 0:00:22]} 33. h3 {[%clk 0:00:35]}  Ne7 {[%clk 0:00:20]} 34. Kf3 {[%clk 0:00:30]}  Nc6 {[%clk 0:00:17]} 35. g4 {[%clk 0:00:28]}  hxg4+ {[%clk 0:00:17]} 36. hxg4 {[%clk 0:00:28]}  fxe5 {[%clk 0:00:17]} 37. Bxe5 {[%clk 0:00:24]}  Nxe5+ {[%clk 0:00:17]} 38. fxe5 {[%clk 0:00:25]}  Rc8 {[%clk 0:00:17]} 39. Rxd7+ {[%clk 0:00:24]} 1-0


[Site "https://www.chess.com"]

[Event "Titled Tuesday Blitz November 29 Early 2022"]
[White "Ehlvest, Jaan"]
[Black "Chernov, Mikhail"]
[WhiteFideId "4500016"]
[BlackFideId "24143170"]
[WhiteElo "2430"]
[BlackElo "2113"]
[Result "0-1"]
[Round "04"]
[TimeControl "180+1"]
[Date "2022.11.30"]
[WhiteClock "0:00:03"]
[BlackClock "0:00:04"]

1. e4 {[%clk 0:02:47]}  c5 {[%clk 0:03:00]} 2. Nf3 {[%clk 0:02:46]}  Nc6 {[%clk 0:03:00]} 3. Bb5 {[%clk 0:02:45]}  g6 {[%clk 0:02:59]} 4. Bxc6 {[%clk 0:02:44]}  bxc6 {[%clk 0:03:00]} 5. d4 {[%clk 0:02:33]}  Bg7 {[%clk 0:02:52]} 6. dxc5 {[%clk 0:02:22]}  Qa5+ {[%clk 0:02:51]} 7. Nbd2 {[%clk 0:02:22]}  Qxc5 {[%clk 0:02:45]} 8. O-O {[%clk 0:02:18]}  d6 {[%clk 0:02:41]} 9. c4 {[%clk 0:02:16]}  Nf6 {[%clk 0:02:35]} 10. Re1 {[%clk 0:01:57]}  Nd7 {[%clk 0:02:28]} 11. Rb1 {[%clk 0:01:54]}  a5 {[%clk 0:02:22]} 12. b3 {[%clk 0:01:51]}  O-O {[%clk 0:02:21]} 13. Bb2 {[%clk 0:01:45]}  Bxb2 {[%clk 0:02:09]} 14. Rxb2 {[%clk 0:01:45]}  Qh5 {[%clk 0:01:47]} 15. Nf1 {[%clk 0:01:43]}  Nc5 {[%clk 0:01:38]} 16. Ng3 {[%clk 0:01:39]}  Qh6 {[%clk 0:01:33]} 17. h3 {[%clk 0:01:37]}  Qg7 {[%clk 0:01:31]} 18. e5 {[%clk 0:01:36]}  Bb7 {[%clk 0:01:10]} 19. Rd2 {[%clk 0:01:35]}  d5 {[%clk 0:01:08]} 20. Qe2 {[%clk 0:01:28]}  Ne6 {[%clk 0:00:57]} 21. cxd5 {[%clk 0:01:18]}  cxd5 {[%clk 0:00:58]} 22. Nd4 {[%clk 0:01:17]}  Ba6 {[%clk 0:00:48]} 23. Qe3 {[%clk 0:01:17]}  Nxd4 {[%clk 0:00:46]} 24. Qxd4 {[%clk 0:01:15]}  e6 {[%clk 0:00:47]} 25. Rc1 {[%clk 0:01:03]}  Rfc8 {[%clk 0:00:47]} 26. Rdc2 {[%clk 0:01:03]}  Qf8 {[%clk 0:00:36]} 27. f4 {[%clk 0:00:59]}  Rxc2 {[%clk 0:00:32]} 28. Rxc2 {[%clk 0:00:58]}  Rc8 {[%clk 0:00:33]} 29. Rd2 {[%clk 0:00:37]}  Qc5 {[%clk 0:00:27]} 30. Nh1 {[%clk 0:00:34]}  Qxd4+ {[%clk 0:00:26]} 31. Rxd4 {[%clk 0:00:34]}  Rc1+ {[%clk 0:00:22]} 32. Kh2 {[%clk 0:00:34]}  Rc2 {[%clk 0:00:20]} 33. Kg1 {[%clk 0:00:23]}  Rxa2 {[%clk 0:00:19]} 34. Nf2 {[%clk 0:00:23]}  Be2 {[%clk 0:00:17]} 35. g4 {[%clk 0:00:21]}  h6 {[%clk 0:00:16]} 36. h4 {[%clk 0:00:19]}  Kg7 {[%clk 0:00:17]} 37. g5 {[%clk 0:00:18]}  hxg5 {[%clk 0:00:16]} 38. hxg5 {[%clk 0:00:19]}  Rb2 {[%clk 0:00:12]} 39. Ra4 {[%clk 0:00:17]}  Rxb3 {[%clk 0:00:12]} 40. Rxa5 {[%clk 0:00:17]}  Rb4 {[%clk 0:00:12]} 41. Ra2 {[%clk 0:00:14]}  Bf3 {[%clk 0:00:08]} 42. Nd3 {[%clk 0:00:10]}  Rd4 {[%clk 0:00:07]} 43. Ra3 {[%clk 0:00:10]}  Be2 {[%clk 0:00:05]} 44. Nc5 {[%clk 0:00:08]}  Rxf4 {[%clk 0:00:04]} 45. Ra7 {[%clk 0:00:07]}  Kg8 {[%clk 0:00:03]} 46. Ra8+ {[%clk 0:00:06]}  Kg7 {[%clk 0:00:03]} 47. Nd7 {[%clk 0:00:07]}  Rg4+ {[%clk 0:00:02]} 48. Kf2 {[%clk 0:00:07]}  Rxg5 {[%clk 0:00:03]} 49. Nf6 {[%clk 0:00:06]}  Rf5+ {[%clk 0:00:03]} 50. Ke1 {[%clk 0:00:05]}  Rxe5 {[%clk 0:00:04]} 51. Ne8+ {[%clk 0:00:03]}  Kh6 {[%clk 0:00:04]} 0-1


[Site "https://www.chess.com"]

[Event "Titled Tuesday Blitz November 29 Early 2022"]
[White "Fecker, Noah"]
[Black "Jimenez, Joaquin"]
[WhiteFideId "1334263"]
[BlackFideId "109860"]
[WhiteElo "2291"]
[BlackElo "2163"]
[Result "1-0"]
[Round "04"]
[TimeControl "180+1"]
[Date "2022.11.30"]
[WhiteClock "0:01:43"]
[BlackClock "0:01:42"]

1. d4 {[%clk 0:03:00]}  Nf6 {[%clk 0:02:59]} 2. c4 {[%clk 0:03:01]}  g6 {[%clk 0:02:58]} 3. Nc3 {[%clk 0:02:59]}  Bg7 {[%clk 0:02:58]} 4. g3 {[%clk 0:02:56]}  d6 {[%clk 0:02:58]} 5. Bg2 {[%clk 0:02:56]}  O-O {[%clk 0:02:58]} 6. Nf3 {[%clk 0:02:53]}  Nc6 {[%clk 0:02:58]} 7. b3 {[%clk 0:02:53]}  Bf5 {[%clk 0:02:57]} 8. Bb2 {[%clk 0:02:53]}  Ne4 {[%clk 0:02:57]} 9. O-O {[%clk 0:02:52]}  Nxc3 {[%clk 0:02:56]} 10. Bxc3 {[%clk 0:02:53]}  a5 {[%clk 0:02:55]} 11. Qd2 {[%clk 0:02:41]}  Be4 {[%clk 0:02:53]} 12. Qf4 {[%clk 0:02:37]}  d5 {[%clk 0:02:51]} 13. Qh4 {[%clk 0:02:33]}  e6 {[%clk 0:02:43]} 14. Ng5 {[%clk 0:02:30]}  h6 {[%clk 0:02:38]} 15. Nxe4 {[%clk 0:02:30]}  Qxh4 {[%clk 0:02:38]} 16. gxh4 {[%clk 0:02:30]}  dxe4 {[%clk 0:02:38]} 17. e3 {[%clk 0:02:28]}  f5 {[%clk 0:02:37]} 18. f3 {[%clk 0:02:25]}  exf3 {[%clk 0:02:34]} 19. Bxf3 {[%clk 0:02:25]}  h5 {[%clk 0:02:33]} 20. Kf2 {[%clk 0:02:24]}  Bf6 {[%clk 0:02:33]} 21. Rg1 {[%clk 0:02:19]}  Kf7 {[%clk 0:02:32]} 22. Ke2 {[%clk 0:02:19]}  Bxh4 {[%clk 0:02:30]} 23. d5 {[%clk 0:02:19]}  Nd8 {[%clk 0:02:10]} 24. dxe6+ {[%clk 0:02:17]}  Nxe6 {[%clk 0:02:10]} 25. Bxb7 {[%clk 0:02:17]}  Rad8 {[%clk 0:02:08]} 26. Bxa5 {[%clk 0:02:14]}  Bf6 {[%clk 0:02:08]} 27. Rad1 {[%clk 0:02:13]}  Rxd1 {[%clk 0:02:06]} 28. Rxd1 {[%clk 0:02:13]}  Be5 {[%clk 0:02:02]} 29. Rd7+ {[%clk 0:02:11]}  Kf6 {[%clk 0:02:02]} 30. Bd5 {[%clk 0:02:07]}  Bxh2 {[%clk 0:01:57]} 31. Bc3+ {[%clk 0:01:56]}  Be5 {[%clk 0:01:56]} 32. Bxe5+ {[%clk 0:01:54]}  Kxe5 {[%clk 0:01:56]} 33. a4 {[%clk 0:01:55]}  f4 {[%clk 0:01:54]} 34. a5 {[%clk 0:01:54]}  f3+ {[%clk 0:01:52]} 35. Bxf3 {[%clk 0:01:51]}  Rb8 {[%clk 0:01:46]} 36. a6 {[%clk 0:01:50]}  Rxb3 {[%clk 0:01:44]} 37. a7 {[%clk 0:01:49]}  Ra3 {[%clk 0:01:44]} 38. a8=Q {[%clk 0:01:49]}  Rxa8 {[%clk 0:01:43]} 39. Bxa8 {[%clk 0:01:49]}  g5 {[%clk 0:01:43]} 40. Bd5 {[%clk 0:01:44]}  Nc5 {[%clk 0:01:42]} 41. Rxc7 {[%clk 0:01:44]}  h4 {[%clk 0:01:42]} 42. Rxc5 {[%clk 0:01:43]} 1-0


[Site "https://www.chess.com"]

[Event "Titled Tuesday Blitz November 29 Early 2022"]
[White "Fernandez Garcia, Gumersindo"]
[Black "Mayaud, Raphael"]
[WhiteFideId "24516740"]
[BlackFideId "627151"]
[WhiteElo "2140"]
[BlackElo "2191"]
[Result "1-0"]
[Round "04"]
[TimeControl "180+1"]
[Date "2022.11.30"]
[WhiteClock "0:00:20"]
[BlackClock "0:00:03"]

1. d4 {[%clk 0:03:00]}  d5 {[%clk 0:02:58]} 2. c3 {[%clk 0:03:01]}  Nf6 {[%clk 0:02:57]} 3. Bg5 {[%clk 0:03:01]}  Ne4 {[%clk 0:02:54]} 4. Bh4 {[%clk 0:03:01]}  c6 {[%clk 0:02:54]} 5. e3 {[%clk 0:03:00]}  Qb6 {[%clk 0:02:54]} 6. Qb3 {[%clk 0:02:59]}  Bf5 {[%clk 0:02:53]} 7. f3 {[%clk 0:02:48]}  Nf6 {[%clk 0:02:52]} 8. Nd2 {[%clk 0:02:40]}  Nbd7 {[%clk 0:02:52]} 9. Ne2 {[%clk 0:02:38]}  h6 {[%clk 0:02:45]} 10. g4 {[%clk 0:02:38]}  Bd3 {[%clk 0:02:36]} 11. Qxb6 {[%clk 0:02:28]}  axb6 {[%clk 0:02:34]} 12. a3 {[%clk 0:02:28]}  b5 {[%clk 0:02:31]} 13. Rc1 {[%clk 0:02:25]}  e5 {[%clk 0:02:29]} 14. h3 {[%clk 0:02:12]}  Be7 {[%clk 0:02:24]} 15. Bg3 {[%clk 0:02:10]}  Bd6 {[%clk 0:02:17]} 16. Kf2 {[%clk 0:02:07]}  O-O {[%clk 0:02:13]} 17. dxe5 {[%clk 0:01:59]}  Bxe5 {[%clk 0:02:06]} 18. Nd4 {[%clk 0:01:50]}  Bxf1 {[%clk 0:02:03]} 19. Rhxf1 {[%clk 0:01:48]}  Rfe8 {[%clk 0:01:58]} 20. f4 {[%clk 0:01:32]}  Bd6 {[%clk 0:01:55]} 21. Nf5 {[%clk 0:01:32]}  Bc5 {[%clk 0:01:53]} 22. Rfe1 {[%clk 0:01:25]}  Re6 {[%clk 0:01:15]} 23. Kf3 {[%clk 0:01:21]}  Rae8 {[%clk 0:01:11]} 24. Bf2 {[%clk 0:01:21]}  Ne4 {[%clk 0:01:05]} 25. Nxe4 {[%clk 0:01:17]}  Rxe4 {[%clk 0:01:05]} 26. h4 {[%clk 0:01:00]}  Bf8 {[%clk 0:00:56]} 27. g5 {[%clk 0:00:57]}  g6 {[%clk 0:00:53]} 28. Nxh6+ {[%clk 0:00:55]}  Bxh6 {[%clk 0:00:54]} 29. gxh6 {[%clk 0:00:56]}  Nc5 {[%clk 0:00:53]} 30. Rcd1 {[%clk 0:00:54]}  Kh7 {[%clk 0:00:52]} 31. Rg1 {[%clk 0:00:49]}  Kxh6 {[%clk 0:00:51]} 32. Rg5 {[%clk 0:00:46]}  Ne6 {[%clk 0:00:50]} 33. Rg4 {[%clk 0:00:45]}  Ng7 {[%clk 0:00:49]} 34. Rh1 {[%clk 0:00:41]}  Nh5 {[%clk 0:00:48]} 35. Rg5 {[%clk 0:00:38]}  f5 {[%clk 0:00:45]} 36. Rhg1 {[%clk 0:00:36]}  R8e6 {[%clk 0:00:46]} 37. Rd1 {[%clk 0:00:32]}  Rc4 {[%clk 0:00:44]} 38. Rdg1 {[%clk 0:00:29]}  Rce4 {[%clk 0:00:42]} 39. R5g2 {[%clk 0:00:30]}  Ra4 {[%clk 0:00:38]} 40. Be1 {[%clk 0:00:29]}  Ra8 {[%clk 0:00:35]} 41. Bd2 {[%clk 0:00:29]}  Rg8 {[%clk 0:00:33]} 42. Ra1 {[%clk 0:00:29]}  Ra8 {[%clk 0:00:32]} 43. Rgg1 {[%clk 0:00:28]}  Nf6 {[%clk 0:00:31]} 44. Rh1 {[%clk 0:00:25]}  Ne4 {[%clk 0:00:31]} 45. Be1 {[%clk 0:00:26]}  Nf6 {[%clk 0:00:30]} 46. Bd2 {[%clk 0:00:25]}  Rae8 {[%clk 0:00:28]} 47. Rag1 {[%clk 0:00:24]}  Nh5 {[%clk 0:00:26]} 48. Rg5 {[%clk 0:00:23]}  Re4 {[%clk 0:00:25]} 49. Ke2 {[%clk 0:00:21]}  R4e6 {[%clk 0:00:25]} 50. Kd3 {[%clk 0:00:22]}  Re4 {[%clk 0:00:25]} 51. Rg2 {[%clk 0:00:21]}  R8e6 {[%clk 0:00:25]} 52. Rhg1 {[%clk 0:00:21]}  c5 {[%clk 0:00:25]} 53. b3 {[%clk 0:00:20]}  c4+ {[%clk 0:00:24]} 54. bxc4 {[%clk 0:00:20]}  bxc4+ {[%clk 0:00:25]} 55. Kc2 {[%clk 0:00:20]}  Ra6 {[%clk 0:00:25]} 56. Ra1 {[%clk 0:00:20]}  Re8 {[%clk 0:00:24]} 57. Rgg1 {[%clk 0:00:21]}  Rea8 {[%clk 0:00:24]} 58. Rgb1 {[%clk 0:00:21]}  b6 {[%clk 0:00:23]} 59. Rb5 {[%clk 0:00:20]}  Nf6 {[%clk 0:00:20]} 60. Bc1 {[%clk 0:00:20]}  Kh5 {[%clk 0:00:19]} 61. Rab1 {[%clk 0:00:20]}  Kxh4 {[%clk 0:00:13]} 62. Rxb6 {[%clk 0:00:20]}  Rxb6 {[%clk 0:00:14]} 63. Rxb6 {[%clk 0:00:21]}  Ne4 {[%clk 0:00:13]} 64. Rxg6 {[%clk 0:00:21]}  Kh3 {[%clk 0:00:13]} 65. Rg7 {[%clk 0:00:21]}  Re8 {[%clk 0:00:11]} 66. Rf7 {[%clk 0:00:20]}  Kg4 {[%clk 0:00:11]} 67. Rg7+ {[%clk 0:00:20]}  Kf3 {[%clk 0:00:11]} 68. Rf7 {[%clk 0:00:20]}  Kg4 {[%clk 0:00:11]} 69. Rd7 {[%clk 0:00:21]}  Nf6 {[%clk 0:00:10]} 70. Rd6 {[%clk 0:00:21]}  Rf8 {[%clk 0:00:10]} 71. a4 {[%clk 0:00:21]}  Kf3 {[%clk 0:00:08]} 72. a5 {[%clk 0:00:21]}  Ke4 {[%clk 0:00:09]} 73. a6 {[%clk 0:00:21]}  Ng4 {[%clk 0:00:09]} 74. a7 {[%clk 0:00:20]}  Ra8 {[%clk 0:00:09]} 75. Rd7 {[%clk 0:00:21]}  Nxe3+ {[%clk 0:00:09]} 76. Bxe3 {[%clk 0:00:20]}  Kxe3 {[%clk 0:00:09]} 77. Rxd5 {[%clk 0:00:20]}  Kxf4 {[%clk 0:00:09]} 78. Rd4+ {[%clk 0:00:19]}  Ke5 {[%clk 0:00:09]} 79. Rd7 {[%clk 0:00:19]}  Ke4 {[%clk 0:00:08]} 80. Kd2 {[%clk 0:00:20]}  f4 {[%clk 0:00:09]} 81. Ke2 {[%clk 0:00:20]}  Re8 {[%clk 0:00:04]} 82. Kf2 {[%clk 0:00:20]}  Rh8 {[%clk 0:00:03]} 83. Rd4+ {[%clk 0:00:20]}  Ke5 {[%clk 0:00:03]} 84. Rxc4 {[%clk 0:00:20]}  Ra8 {[%clk 0:00:03]} 85. Rc7 {[%clk 0:00:20]}  Ke4 {[%clk 0:00:02]} 86. Re7+ {[%clk 0:00:19]}  Kd3 {[%clk 0:00:01]} 87. Rc7 {[%clk 0:00:19]}  Ke4 {[%clk 0:00:01]} 88. c4 {[%clk 0:00:19]}  Kd4 {[%clk 0:00:01]} 89. Kf3 {[%clk 0:00:20]}  Ke5 {[%clk 0:00:02]} 90. c5 {[%clk 0:00:20]}  Kd5 {[%clk 0:00:02]} 91. Kxf4 {[%clk 0:00:20]}  Kd4 {[%clk 0:00:02]} 92. Kf5 {[%clk 0:00:20]}  Kd5 {[%clk 0:00:02]} 93. Kf6 {[%clk 0:00:21]}  Rd8 {[%clk 0:00:02]} 94. Ke7 {[%clk 0:00:21]}  Ra8 {[%clk 0:00:02]} 95. Kd7 {[%clk 0:00:20]}  Kc4 {[%clk 0:00:03]} 96. Kc6 {[%clk 0:00:20]}  Kb4 {[%clk 0:00:03]} 97. Kb7 {[%clk 0:00:20]} 1-0


[Site "https://www.chess.com"]

[Event "Titled Tuesday Blitz November 29 Early 2022"]
[White "Fernandez Hernandez, Gerardo"]
[Black "Gonzalez, Francisco Silva"]
[WhiteFideId "2207400"]
[BlackFideId "1512285"]
[WhiteElo "2228"]
[BlackElo "2159"]
[Result "0-1"]
[Round "04"]
[TimeControl "180+1"]
[Date "2022.11.30"]
[WhiteClock "0:00:01"]
[BlackClock "0:01:32"]

1. e4 {[%clk 0:03:00]}  e5 {[%clk 0:02:53]} 2. Nf3 {[%clk 0:02:59]}  Nc6 {[%clk 0:02:51]} 3. Bc4 {[%clk 0:02:59]}  Bc5 {[%clk 0:02:51]} 4. b4 {[%clk 0:02:58]}  Bb6 {[%clk 0:02:50]} 5. c3 {[%clk 0:02:59]}  Nf6 {[%clk 0:02:49]} 6. a4 {[%clk 0:02:59]}  a6 {[%clk 0:02:48]} 7. d3 {[%clk 0:02:57]}  d6 {[%clk 0:02:48]} 8. a5 {[%clk 0:02:57]}  Ba7 {[%clk 0:02:48]} 9. O-O {[%clk 0:02:55]}  O-O {[%clk 0:02:46]} 10. Be3 {[%clk 0:02:55]}  Ne7 {[%clk 0:02:46]} 11. Bxa7 {[%clk 0:02:53]}  Rxa7 {[%clk 0:02:46]} 12. Nbd2 {[%clk 0:02:50]}  Ng6 {[%clk 0:02:46]} 13. d4 {[%clk 0:02:47]}  Qe7 {[%clk 0:02:45]} 14. Re1 {[%clk 0:02:40]}  Nf4 {[%clk 0:02:45]} 15. Bf1 {[%clk 0:02:31]}  Bg4 {[%clk 0:02:42]} 16. h3 {[%clk 0:02:28]}  Bh5 {[%clk 0:02:42]} 17. d5 {[%clk 0:02:02]}  Raa8 {[%clk 0:02:40]} 18. g3 {[%clk 0:02:00]}  Ng6 {[%clk 0:02:34]} 19. g4 {[%clk 0:01:59]}  Bxg4 {[%clk 0:02:33]} 20. hxg4 {[%clk 0:01:59]}  Nxg4 {[%clk 0:02:33]} 21. Nh2 {[%clk 0:01:49]}  Nxh2 {[%clk 0:02:33]} 22. Kxh2 {[%clk 0:01:48]}  Qh4+ {[%clk 0:02:32]} 23. Bh3 {[%clk 0:01:12]}  Qxf2+ {[%clk 0:02:29]} 24. Kh1 {[%clk 0:00:46]}  f5 {[%clk 0:02:24]} 25. Bxf5 {[%clk 0:00:33]}  Qh4+ {[%clk 0:02:22]} 26. Kg1 {[%clk 0:00:31]}  Qg3+ {[%clk 0:02:19]} 27. Kh1 {[%clk 0:00:22]}  Rxf5 {[%clk 0:02:18]} 28. exf5 {[%clk 0:00:22]}  Qh3+ {[%clk 0:02:15]} 29. Kg1 {[%clk 0:00:21]}  Nh4 {[%clk 0:02:15]} 30. Qe2 {[%clk 0:00:17]}  Qg3+ {[%clk 0:02:13]} 31. Kh1 {[%clk 0:00:16]}  Qh3+ {[%clk 0:02:04]} 32. Qh2 {[%clk 0:00:16]}  Qxc3 {[%clk 0:01:56]} 33. Qxh4 {[%clk 0:00:13]}  Qxd2 {[%clk 0:01:56]} 34. f6 {[%clk 0:00:12]}  Qxd5+ {[%clk 0:01:56]} 35. Kg1 {[%clk 0:00:12]}  Rf8 {[%clk 0:01:40]} 36. fxg7 {[%clk 0:00:10]}  Rf4 {[%clk 0:01:35]} 37. Qg3 {[%clk 0:00:06]}  Qd4+ {[%clk 0:01:33]} 38. Kh1 {[%clk 0:00:02]}  Rh4+ {[%clk 0:01:32]} 39. Kg2 {[%clk 0:00:01]}  Rg4 {[%clk 0:01:32]} 0-1


[Site "https://www.chess.com"]

[Event "Titled Tuesday Blitz November 29 Early 2022"]
[White "Fromm, Marius"]
[Black "Weetik, Vjacheslav"]
[WhiteFideId "12993190"]
[BlackFideId "4153472"]
[WhiteElo "2325"]
[BlackElo "2469"]
[Result "1-0"]
[Round "04"]
[TimeControl "180+1"]
[Date "2022.11.30"]
[WhiteClock "0:00:39"]
[BlackClock "0:00:13"]

1. e4 {[%clk 0:03:00]}  c6 {[%clk 0:02:56]} 2. d4 {[%clk 0:03:00]}  d5 {[%clk 0:02:56]} 3. exd5 {[%clk 0:03:01]}  cxd5 {[%clk 0:02:56]} 4. Bd3 {[%clk 0:03:02]}  Nc6 {[%clk 0:02:56]} 5. c3 {[%clk 0:03:03]}  g6 {[%clk 0:02:57]} 6. Nf3 {[%clk 0:03:01]}  Bf5 {[%clk 0:02:56]} 7. Be2 {[%clk 0:02:57]}  Bg7 {[%clk 0:02:53]} 8. O-O {[%clk 0:02:58]}  Nf6 {[%clk 0:02:53]} 9. Bf4 {[%clk 0:02:59]}  Nh5 {[%clk 0:02:51]} 10. Be3 {[%clk 0:02:58]}  Qc7 {[%clk 0:02:47]} 11. Re1 {[%clk 0:02:58]}  O-O {[%clk 0:02:41]} 12. Nbd2 {[%clk 0:02:57]}  Nf4 {[%clk 0:02:39]} 13. Bf1 {[%clk 0:02:57]}  Rad8 {[%clk 0:02:32]} 14. Nb3 {[%clk 0:02:46]}  h6 {[%clk 0:02:01]} 15. Qd2 {[%clk 0:02:39]}  g5 {[%clk 0:01:59]} 16. h4 {[%clk 0:02:32]}  Bg4 {[%clk 0:01:51]} 17. hxg5 {[%clk 0:02:30]}  Nh3+ {[%clk 0:01:39]} 18. gxh3 {[%clk 0:02:25]}  Bxf3 {[%clk 0:01:39]} 19. gxh6 {[%clk 0:02:11]}  Bf6 {[%clk 0:01:40]} 20. Bf4 {[%clk 0:02:11]}  Qc8 {[%clk 0:01:26]} 21. Re3 {[%clk 0:02:09]}  Bh5 {[%clk 0:01:21]} 22. Rg3+ {[%clk 0:02:06]}  Kh8 {[%clk 0:01:21]} 23. Bd3 {[%clk 0:02:04]}  Rg8 {[%clk 0:01:20]} 24. Kh2 {[%clk 0:02:03]}  Bh4 {[%clk 0:01:14]} 25. Rag1 {[%clk 0:01:55]}  Bxg3+ {[%clk 0:01:12]} 26. fxg3 {[%clk 0:01:56]}  Bg6 {[%clk 0:01:08]} 27. Nc5 {[%clk 0:01:47]}  b6 {[%clk 0:01:05]} 28. Bxg6 {[%clk 0:01:32]}  Rxg6 {[%clk 0:01:04]} 29. Nd3 {[%clk 0:01:32]}  Rdg8 {[%clk 0:00:52]} 30. Qe3 {[%clk 0:01:30]}  Re6 {[%clk 0:00:49]} 31. Qf3 {[%clk 0:01:27]}  Rgg6 {[%clk 0:00:46]} 32. Qxd5 {[%clk 0:01:24]}  Re2+ {[%clk 0:00:39]} 33. Rg2 {[%clk 0:01:24]}  Rxg2+ {[%clk 0:00:35]} 34. Kxg2 {[%clk 0:01:20]}  Qe6 {[%clk 0:00:34]} 35. Qxe6 {[%clk 0:01:19]}  fxe6 {[%clk 0:00:33]} 36. Kf3 {[%clk 0:01:14]}  Kh7 {[%clk 0:00:32]} 37. g4 {[%clk 0:01:14]}  Rg8 {[%clk 0:00:31]} 38. h4 {[%clk 0:01:12]}  Rf8 {[%clk 0:00:26]} 39. h5 {[%clk 0:01:07]}  Nd8 {[%clk 0:00:21]} 40. g5 {[%clk 0:01:04]}  e5 {[%clk 0:00:21]} 41. g6+ {[%clk 0:01:03]}  Kg8 {[%clk 0:00:20]} 42. Nxe5 {[%clk 0:01:02]}  Ne6 {[%clk 0:00:20]} 43. h7+ {[%clk 0:00:52]}  Kh8 {[%clk 0:00:17]} 44. Nd3 {[%clk 0:00:40]}  Ng7 {[%clk 0:00:13]} 45. Kg4 {[%clk 0:00:39]} 1-0


[Site "https://www.chess.com"]

[Event "Titled Tuesday Blitz November 29 Early 2022"]
[White "Gabrielian, Artur"]
[Black "Deac, Bogdan-Daniel"]
[WhiteFideId "4131002"]
[BlackFideId "1226380"]
[WhiteElo "2432"]
[BlackElo "2648"]
[Result "0-1"]
[Round "04"]
[TimeControl "180+1"]
[Date "2022.11.30"]
[WhiteClock "0:00:03"]
[BlackClock "0:00:05"]

1. e4 {[%clk 0:03:00]}  c6 {[%clk 0:03:00]} 2. d4 {[%clk 0:03:00]}  d5 {[%clk 0:03:00]} 3. e5 {[%clk 0:03:01]}  Bf5 {[%clk 0:03:00]} 4. h4 {[%clk 0:03:01]}  h5 {[%clk 0:03:00]} 5. Bd3 {[%clk 0:03:01]}  Bxd3 {[%clk 0:02:59]} 6. Qxd3 {[%clk 0:03:02]}  e6 {[%clk 0:03:00]} 7. Nf3 {[%clk 0:03:01]}  Qa5+ {[%clk 0:02:59]} 8. Nbd2 {[%clk 0:02:59]}  Nh6 {[%clk 0:02:59]} 9. O-O {[%clk 0:02:58]}  Nf5 {[%clk 0:02:59]} 10. a4 {[%clk 0:02:58]}  c5 {[%clk 0:02:53]} 11. c4 {[%clk 0:02:52]}  Qa6 {[%clk 0:02:35]} 12. Qc2 {[%clk 0:02:33]}  Nc6 {[%clk 0:02:14]} 13. dxc5 {[%clk 0:02:24]}  Nb4 {[%clk 0:02:07]} 14. Qb3 {[%clk 0:02:08]}  Bxc5 {[%clk 0:02:06]} 15. cxd5 {[%clk 0:01:57]}  exd5 {[%clk 0:01:51]} 16. Ng5 {[%clk 0:01:28]}  O-O {[%clk 0:01:33]} 17. Qh3 {[%clk 0:01:19]}  Qg6 {[%clk 0:01:20]} 18. Ndf3 {[%clk 0:01:07]}  Rae8 {[%clk 0:01:12]} 19. Bd2 {[%clk 0:01:02]}  f6 {[%clk 0:00:54]} 20. exf6 {[%clk 0:00:50]}  gxf6 {[%clk 0:00:53]} 21. Bxb4 {[%clk 0:00:27]}  Bxb4 {[%clk 0:00:51]} 22. g4 {[%clk 0:00:25]}  Ng7 {[%clk 0:00:35]} 23. Rad1 {[%clk 0:00:17]}  fxg5 {[%clk 0:00:31]} 24. Nxg5 {[%clk 0:00:15]}  Rf4 {[%clk 0:00:27]} 25. Rxd5 {[%clk 0:00:08]}  Rxg4+ {[%clk 0:00:24]} 26. Kh1 {[%clk 0:00:09]}  Qc6 {[%clk 0:00:16]} 27. Qb3 {[%clk 0:00:08]}  Rxh4+ {[%clk 0:00:06]} 28. Kg1 {[%clk 0:00:07]}  Qc4 {[%clk 0:00:06]} 29. Qxc4 {[%clk 0:00:05]}  Rxc4 {[%clk 0:00:06]} 30. Rfd1 {[%clk 0:00:05]}  Rc5 {[%clk 0:00:06]} 31. Rxc5 {[%clk 0:00:05]}  Bxc5 {[%clk 0:00:06]} 32. Rd7 {[%clk 0:00:06]}  a5 {[%clk 0:00:05]} 33. Rxb7 {[%clk 0:00:05]}  Rf8 {[%clk 0:00:05]} 34. Kg2 {[%clk 0:00:05]}  h4 {[%clk 0:00:04]} 35. Kh3 {[%clk 0:00:05]}  Bxf2 {[%clk 0:00:04]} 36. Kg4 {[%clk 0:00:05]}  Bg3 {[%clk 0:00:04]} 37. b4 {[%clk 0:00:04]}  Rf4+ {[%clk 0:00:03]} 38. Kh3 {[%clk 0:00:04]}  Rxb4 {[%clk 0:00:04]} 39. Ra7 {[%clk 0:00:04]}  Nf5 {[%clk 0:00:04]} 40. Ne6 {[%clk 0:00:03]}  Rxa4 {[%clk 0:00:03]} 41. Kg2 {[%clk 0:00:01]}  Ne3+ {[%clk 0:00:03]} 42. Kf3 {[%clk 0:00:02]}  Nd5 {[%clk 0:00:04]} 43. Ng5 {[%clk 0:00:02]}  Ra3+ {[%clk 0:00:04]} 44. Kg4 {[%clk 0:00:02]}  Ra4+ {[%clk 0:00:05]} 45. Kh5 {[%clk 0:00:03]}  Kf8 {[%clk 0:00:05]} 46. Kg6 {[%clk 0:00:03]}  Ke8 {[%clk 0:00:05]} 47. Ne6 {[%clk 0:00:02]}  Nf4+ {[%clk 0:00:05]} 48. Nxf4 {[%clk 0:00:02]}  Rxf4 {[%clk 0:00:04]} 49. Rxa5 {[%clk 0:00:02]}  h3 {[%clk 0:00:05]} 50. Rh5 {[%clk 0:00:02]}  h2 {[%clk 0:00:05]} 51. Kg5 {[%clk 0:00:03]}  Rh4 {[%clk 0:00:05]} 0-1


[Site "https://www.chess.com"]